bitfinex/quotes_BTCUSD_20250105
["timestamp","ask_amount","ask_price","bid_price","bid_amount"]
[1736046017437,0.0845849,98240.0,98239.0,0.66365494]
[1736046017640,0.0845849,98240.0,98239.0,0.81365494]
[1736046018035,0.0772854,98240.0,98239.0,0.81365494]
[1736046018589,8.54e-05,98240.0,98239.0,0.81365494]
[1736046019377,8.54e-05,98240.0,98239.0,0.81465494]
[1736046019530,8.54e-05,98240.0,98239.0,0.81765494]
[1736046020197,8.54e-05,98240.0,98239.0,0.81465494]
[1736046020547,8.54e-05,98240.0,98239.0,0.81965494]
[1736046020771,8.54e-05,98240.0,98239.0,0.82065494]
[1736046021229,8.54e-05,98240.0,98239.0,0.81965494]
[1736046021631,8.54e-05,98240.0,98239.0,0.82165494]
[1736046024003,8.54e-05,98240.0,98239.0,0.81965494]
[1736046024206,8.54e-05,98240.0,98239.0,0.82165494]
[1736046024855,8.54e-05,98240.0,98239.0,0.81565494]
[1736046025185,8.54e-05,98240.0,98239.0,0.82165494]
[1736046026025,8.54e-05,98240.0,98239.0,0.81565494]
[1736046026232,8.54e-05,98240.0,98239.0,0.82165494]
[1736046026642,8.54e-05,98240.0,98239.0,0.81965494]
[1736046027045,8.54e-05,98240.0,98239.0,0.82165494]
[1736046027449,8.54e-05,98240.0,98239.0,0.81965494]
[1736046027885,8.54e-05,98240.0,98239.0,0.81365494]
[1736046028085,8.54e-05,98240.0,98239.0,0.81665494]
[1736046028241,8.54e-05,98240.0,98239.0,0.82465494]
[1736046028441,8.54e-05,98240.0,98239.0,0.82165494]
[1736046028638,8.54e-05,98240.0,98239.0,0.81365494]
[1736046029040,8.54e-05,98240.0,98239.0,0.91302848]
[1736046029924,8.54e-05,98240.0,98239.0,0.91602848]
[1736046038151,8.54e-05,98240.0,98239.0,0.82465494]
[1736046041305,8.54e-05,98240.0,98239.0,0.91602494]
[1736046043678,0.07810634,98249.0,98248.0,0.226566]
[1736046043883,0.07815575,98249.0,98248.0,0.33055232]
[1736046044059,0.07815575,98249.0,98248.0,0.35025038]
[1736046045069,0.07815575,98249.0,98248.0,0.35425038]
[1736046045908,0.07815575,98249.0,98248.0,0.35625038]
[1736046046317,0.07815575,98249.0,98248.0,0.35425038]
[1736046046738,0.07815575,98249.0,98248.0,0.35525038]
[1736046046941,0.07815575,98249.0,98248.0,0.37558527]
[1736046047722,0.07815575,98249.0,98248.0,0.37458527]
[1736046048332,0.07815575,98249.0,98248.0,0.37058527]
[1736046048873,0.07815575,98249.0,98248.0,0.37358527]
[1736046049073,0.07815575,98249.0,98248.0,0.37158527]
[1736046049386,0.07815575,98249.0,98248.0,0.37458527]
[1736046049532,0.07815575,98249.0,98248.0,0.37058527]
[1736046049959,0.07815575,98249.0,98248.0,0.37158527]
[1736046050159,0.07815575,98249.0,98248.0,0.37838527]
[1736046050992,0.07815575,98249.0,98248.0,0.38038527]
[1736046051732,0.07815575,98249.0,98248.0,0.37838527]
[1736046052094,0.07815575,98249.0,98248.0,0.38138527]
[1736046052446,0.07815575,98249.0,98248.0,0.38338527]
[1736046053247,0.07815575,98249.0,98248.0,0.38138527]
[1736046053601,0.07815575,98249.0,98248.0,0.38338527]
[1736046054643,0.07815575,98249.0,98248.0,0.37938527]
[1736046054971,0.07815575,98249.0,98248.0,0.38338527]
[1736046056178,0.07815575,98249.0,98248.0,0.38355607]
[1736046056593,0.07815575,98249.0,98248.0,0.38155607]
[1736046056792,0.07815575,98249.0,98248.0,0.38355607]
[1736046057828,0.07815575,98249.0,98248.0,0.37955607]
[1736046058034,0.07815575,98249.0,98248.0,0.38355607]
[1736046058698,0.07815575,98249.0,98248.0,0.37955607]
[1736046058908,0.07815575,98249.0,98248.0,0.37755607]
[1736046059109,0.07815575,98249.0,98248.0,0.38055607]
[1736046059426,0.07815575,98249.0,98248.0,0.38155607]
[1736046060748,0.07815575,98249.0,98248.0,0.38055607]
[1736046060894,0.07815575,98249.0,98248.0,0.37755607]
[1736046061095,0.07815575,98249.0,98248.0,0.38155607]
[1736046062364,0.07815575,98249.0,98248.0,0.37955607]
[1736046062766,0.07815575,98249.0,98248.0,0.38255607]
[1736046063382,0.07815575,98249.0,98248.0,0.38055607]
[1736046063541,0.07815575,98249.0,98248.0,0.38155607]
[1736046066272,0.07815575,98249.0,98248.0,0.47206069]
[1736046066496,0.07815575,98249.0,98248.0,0.47306069]
[1736046067105,0.1252572,98249.0,98248.0,0.23969469]
[1736046067473,1.07215296,98249.0,98248.0,0.2193598]
[1736046067652,1.07105151,98249.0,98248.0,0.11537348]
[1736046067804,1.07105151,98249.0,98248.0,0.09267542]
[1736046068191,1.07113691,98249.0,98248.0,0.09267542]
[1736046068399,1.07113691,98249.0,98248.0,0.09467542]
[1736046068621,1.07113691,98249.0,98248.0,0.09567542]
[1736046069154,1.07113691,98249.0,98248.0,0.0001708]
[1736046069572,1.07113691,98249.0,98248.0,0.0021708]
[1736046069925,1.07113691,98249.0,98248.0,0.0001708]
[1736046070130,1.07113691,98249.0,98248.0,0.5001708]
[1736046070576,1.07113691,98249.0,98248.0,0.51994337]
[1736046071146,1.07113691,98249.0,98248.0,0.52094337]
[1736046071663,1.07113691,98249.0,98248.0,0.51994337]
[1736046071913,1.07113691,98249.0,98248.0,0.52394337]
[1736046072115,0.86757291,98249.0,98248.0,0.51994337]
[1736046072344,0.86757291,98249.0,98248.0,0.52194337]
[1736046072689,0.95906833,98249.0,98248.0,0.51994337]
[1736046073102,0.95906833,98249.0,98248.0,0.52394337]
[1736046073313,0.95906833,98249.0,98248.0,0.52194337]
[1736046073535,0.95906833,98249.0,98248.0,0.52594337]
[1736046073966,0.86757291,98249.0,98248.0,0.52594337]
[1736046074839,0.86757291,98249.0,98248.0,0.51994337]
[1736046075165,0.86757291,98249.0,98248.0,0.52394337]
[1736046075594,0.86757291,98249.0,98248.0,0.52294337]
[1736046076043,0.86757291,98249.0,98248.0,0.52394337]
[1736046079614,0.86757291,98249.0,98248.0,0.52294337]
[1736046079814,0.86757291,98249.0,98248.0,0.52394337]
[1736046080379,0.86757291,98249.0,98248.0,0.52294337]
[1736046080700,0.86757291,98249.0,98248.0,0.52394337]
[1736046080861,0.86757291,98249.0,98248.0,0.52094337]
[1736046081283,0.86757291,98249.0,98248.0,0.52294337]
[1736046081766,0.86757291,98249.0,98248.0,0.52594337]
[1736046081940,0.86757291,98249.0,98248.0,0.52494337]
[1736046082139,0.86757291,98249.0,98248.0,0.51994337]
[1736046082514,0.86757291,98249.0,98248.0,0.52494337]
[1736046084571,0.86757291,98249.0,98248.0,0.52094337]
[1736046084929,0.86757291,98249.0,98248.0,0.52394337]
[1736046085354,0.86757291,98249.0,98248.0,0.52494337]
[1736046085758,0.86757291,98249.0,98248.0,0.52394337]
[1736046086422,0.86757291,98249.0,98248.0,0.51994337]
[1736046086628,0.86757291,98249.0,98248.0,0.52194337]
[1736046087539,0.86757291,98249.0,98248.0,0.52594337]
[1736046093883,0.86757291,98249.0,98248.0,0.52394337]
[1736046094488,0.86757291,98249.0,98248.0,0.51994337]
[1736046094657,0.86757291,98249.0,98248.0,0.52194337]
[1736046095357,0.86757291,98249.0,98248.0,0.52494337]
[1736046095781,1.20468131,98249.0,98248.0,0.52594337]
[1736046095989,1.20468131,98249.0,98248.0,0.52094337]
[1736046096283,1.20468131,98249.0,98248.0,0.51994337]
[1736046097123,1.38729316,98249.0,98248.0,0.51994337]
[1736046098525,1.20468131,98249.0,98248.0,0.51994337]
[1736046099323,1.20468131,98249.0,98248.0,0.01994337]
[1736046099736,1.20468131,98249.0,98248.0,0.0001708]
[1736046101354,1.00453399,98249.0,98248.0,0.0001708]
[1736046102474,0.86757291,98249.0,98248.0,0.0001708]
[1736046103629,0.86671794,98249.0,98248.0,0.0001708]
[1736046105291,1.38644078,98249.0,98248.0,0.0001708]
[1736046106926,1.20382893,98249.0,98248.0,0.0001708]
[1736046111511,1.43269996,98249.0,98248.0,0.0001708]
[1736046112745,1.20382893,98249.0,98248.0,0.0001708]
[1736046119377,1.20382893,98249.0,98248.0,0.0001708]
[1736046123412,1.23561646,98249.0,98248.0,0.0001708]
[1736046124266,1.20382893,98249.0,98248.0,0.0001708]
[1736046124791,1.20382893,98249.0,98248.0,0.0011708]
[1736046125126,1.20382893,98249.0,98248.0,0.0001708]
[1736046127443,1.23564044,98249.0,98248.0,0.0001708]
[1736046130447,1.15782893,98249.0,98248.0,0.0001708]
[1736046134056,1.15782893,98249.0,98248.0,0.0011708]
[1736046134477,1.08057756,98249.0,98248.0,0.0011708]
[1736046135750,1.08057756,98249.0,98248.0,0.0041708]
[1736046139964,1.08057756,98249.0,98248.0,0.0001708]
[1736046140164,1.08057756,98249.0,98248.0,0.0011708]
[1736046140357,1.08057756,98249.0,98248.0,0.0041708]
[1736046140834,1.08057756,98249.0,98248.0,0.0031708]
[1736046141995,1.08057756,98249.0,98248.0,0.0041708]
[1736046142451,1.08057756,98249.0,98248.0,0.0031708]
[1736046142652,1.08057756,98249.0,98248.0,0.0001708]
[1736046142856,1.08057756,98249.0,98248.0,0.0011708]
[1736046143054,1.08057756,98249.0,98248.0,0.0031708]
[1736046143517,1.08057756,98249.0,98248.0,0.0051708]
[1736046147265,1.35538223,98249.0,98248.0,0.0051708]
[1736046148203,1.43278223,98249.0,98248.0,0.0051708]
[1736046148467,1.46457865,98249.0,98248.0,0.0051708]
[1736046148646,1.43278223,98249.0,98248.0,0.0051708]
[1736046148854,1.15797756,98249.0,98248.0,0.0001708]
[1736046149061,1.15797756,98249.0,98248.0,0.0011708]
[1736046149274,1.15797756,98249.0,98248.0,0.0041708]
[1736046150631,1.15797756,98249.0,98248.0,0.0031708]
[1736046151187,1.05797756,98249.0,98248.0,0.0031708]
[1736046151448,1.15797756,98249.0,98248.0,0.0031708]
[1736046151966,1.15797756,98249.0,98248.0,0.0041708]
[1736046152186,1.15797756,98249.0,98248.0,0.0011708]
[1736046152370,1.15797756,98249.0,98248.0,0.0021708]
[1736046152539,1.15797756,98249.0,98248.0,0.0011708]
[1736046152734,1.1897795,98249.0,98248.0,0.0021708]
[1736046153117,1.15797756,98249.0,98248.0,0.0021708]
[1736046153320,1.18977969,98249.0,98248.0,0.0021708]
[1736046153673,1.18978072,98249.0,98248.0,0.0001708]
[1736046153847,1.6630858,98249.0,98248.0,0.0001708]
[1736046155043,1.46453521,98249.0,98248.0,0.0001708]
[1736046155250,1.46453624,98249.0,98248.0,0.0001708]
[1736046157308,1.46453643,98249.0,98248.0,0.0001708]
[1736046159087,1.93783886,98249.0,98248.0,0.0001708]
[1736046161405,1.66308437,98249.0,98248.0,0.0001708]
[1736046164392,1.93786253,98249.0,98248.0,0.0001708]
[1736046166980,1.90605815,98249.0,98248.0,0.0001708]
[1736046167165,1.66308478,98249.0,98248.0,0.0001708]
[1736046168245,1.63127999,98249.0,98248.0,0.0001708]
[1736046169112,1.66308502,98249.0,98248.0,0.0001708]
[1736046170414,1.63127999,98249.0,98248.0,0.0001708]
[1736046170617,1.66308601,98249.0,98248.0,0.0001708]
[1736046172103,1.63127999,98249.0,98248.0,0.0001708]
[1736046172606,1.66308659,98249.0,98248.0,0.0001708]
[1736046173163,1.63127999,98249.0,98248.0,0.0001708]
[1736046173581,1.66308844,98249.0,98248.0,0.0001708]
[1736046174157,1.56308844,98249.0,98248.0,0.0001708]
[1736046174332,1.46459102,98249.0,98248.0,0.0001708]
[1736046174488,1.43278257,98249.0,98248.0,0.0001708]
[1736046175241,1.46459229,98249.0,98248.0,0.0001708]
[1736046175618,1.18978809,98249.0,98248.0,0.0001708]
[1736046176207,1.15797756,98249.0,98248.0,0.0001708]
[1736046176349,1.46459326,98249.0,98248.0,0.0001708]
[1736046177063,1.43278257,98249.0,98248.0,0.0001708]
[1736046179042,1.15797756,98249.0,98248.0,0.0001708]
[1736046185356,1.05797756,98249.0,98248.0,0.0001708]
[1736046186021,1.15797756,98249.0,98248.0,0.0001708]
[1736046186698,1.22433497,98249.0,98248.0,0.0001708]
[1736046196103,1.25614702,98249.0,98248.0,0.0001708]
[1736046197089,1.69781852,98249.0,98248.0,0.0001708]
[1736046197292,1.72963081,98249.0,98248.0,0.0001708]
[1736046200145,1.62963081,98249.0,98248.0,0.0001708]
[1736046200353,1.72963081,98249.0,98248.0,0.0001708]
[1736046208645,1.65223081,98249.0,98248.0,0.0001708]
[1736046208814,1.62041852,98249.0,98248.0,0.0001708]
[1736046210867,1.14693497,98249.0,98248.0,0.0001708]
[1736046214747,1.17874545,98249.0,98248.0,0.0001708]
[1736046214941,1.25944545,98249.0,98248.0,0.0001708]
[1736046215145,1.30794545,98249.0,98248.0,0.0001708]
[1736046215562,1.58279347,98249.0,98248.0,0.0001708]
[1736046216797,1.78142315,98249.0,98248.0,0.0001708]
[1736046252746,1.98142315,98249.0,98248.0,0.0001708]
[1736046260577,2.08540947,98249.0,98248.0,0.0001708]
[1736046260779,1.98142315,98249.0,98248.0,0.0001708]
[1736046274920,0.59530153,98240.0,98239.0,0.0001708]
[1736046275105,0.62711201,98240.0,98239.0,0.0001708]
[1736046276123,0.62711201,98240.0,98239.0,0.0011708]
[1736046276298,0.62711201,98240.0,98239.0,0.0031708]
[1736046277059,1.4377007,98240.0,98239.0,0.0021708]
[1736046277975,1.4377007,98240.0,98239.0,0.0001708]
[1736046280897,1.9810299,98240.0,98239.0,0.0001708]
[1736046282260,2.0810299,98240.0,98239.0,0.0001708]
[1736046282518,2.09141677,98240.0,98239.0,0.0001708]
[1736046283658,2.0835795,98240.0,98239.0,0.0001708]
[1736046299789,2.0836649,98240.0,98239.0,0.0001708]
[1736046303283,1.8071649,98240.0,98239.0,0.0001708]
[1736046304842,1.77535442,98240.0,98239.0,0.0001708]
[1736046305564,1.57675634,98240.0,98239.0,0.0001708]
[1736046306938,1.30187672,98240.0,98239.0,0.0001708]
[1736046308943,1.50187672,98240.0,98239.0,0.0001708]
[1736046309962,1.53368332,98240.0,98239.0,0.0001708]
[1736046310160,1.5682424,98240.0,98239.0,0.0001708]
[1736046310367,1.60004914,98240.0,98239.0,0.0001708]
[1736046311118,1.87492876,98240.0,98239.0,0.0001708]
[1736046312679,2.07350235,98240.0,98239.0,0.0001708]
[1736046324776,1.87350235,98240.0,98239.0,0.0001708]
[1736046324967,2.07350235,98240.0,98239.0,0.0001708]
[1736046325971,2.25520235,98240.0,98239.0,0.0001708]
[1736046329727,2.07350235,98240.0,98239.0,0.0001708]
[1736046337862,1.87350235,98240.0,98239.0,0.0001708]
[1736046341676,1.97350235,98240.0,98239.0,0.0001708]
[1736046343065,1.77489299,98240.0,98239.0,0.0001708]
[1736046343734,1.77484209,98240.0,98239.0,0.0001708]
[1736046345105,1.77485094,98240.0,98239.0,0.0001708]
[1736046345366,1.74303535,98240.0,98239.0,0.0001708]
[1736046348113,1.4681915,98240.0,98239.0,0.0001708]
[1736046349316,1.74303535,98240.0,98239.0,0.0001708]
[1736046354897,1.4681915,98240.0,98239.0,0.0001708]
[1736046356562,1.74303535,98240.0,98239.0,0.0001708]
[1736046358020,1.4681915,98240.0,98239.0,0.0001708]
[1736046359580,1.4681915,98240.0,98239.0,0.0001708]
[1736046364701,1.50001143,98240.0,98239.0,0.0001708]
[1736046365436,1.4681915,98240.0,98239.0,0.0001708]
[1736046366047,1.4681915,98240.0,98239.0,0.0021708]
[1736046366411,1.4681915,98240.0,98239.0,0.0001708]
[1736046366823,1.4681915,98240.0,98239.0,0.0021708]
[1736046367419,1.4681915,98240.0,98239.0,0.0031708]
[1736046368153,1.4681915,98240.0,98239.0,0.0021708]
[1736046368456,1.4681915,98240.0,98239.0,0.0031708]
[1736046368966,1.5482915,98240.0,98239.0,0.0031708]
[1736046369524,1.5482915,98240.0,98239.0,0.0011708]
[1736046369700,1.5482915,98240.0,98239.0,0.0041708]
[1736046370104,1.5482915,98240.0,98239.0,0.0011708]
[1736046370313,1.58011177,98240.0,98239.0,0.0011708]
[1736046370501,1.58011177,98240.0,98239.0,0.0031708]
[1736046370926,1.58011177,98240.0,98239.0,0.0041708]
[1736046371373,1.62911177,98240.0,98239.0,0.0041708]
[1736046371714,1.62911177,98240.0,98239.0,0.0031708]
[1736046372126,1.62911177,98240.0,98239.0,0.0041708]
[1736046372640,1.62911177,98240.0,98239.0,0.0001708]
[1736046372844,1.62911177,98240.0,98239.0,0.0021708]
[1736046373273,1.62911177,98240.0,98239.0,0.0001708]
[1736046373495,2.1025705,98240.0,98239.0,0.0001708]
[1736046373961,2.1025705,98240.0,98239.0,0.0031708]
[1736046378488,2.2025705,98240.0,98239.0,0.0031708]
[1736046378689,2.40655682,98240.0,98239.0,0.0031708]
[1736046379096,2.3025705,98240.0,98239.0,0.0031708]
[1736046379900,2.3025705,98240.0,98239.0,0.0021708]
[1736046380816,2.3025705,98240.0,98239.0,0.0001708]
[1736046381836,2.30248584,98240.0,98239.0,0.0001708]
[1736046382658,0.73501733,98225.0,98224.0,0.0001708]
[1736046382864,0.81571733,98225.0,98224.0,0.0001708]
[1736046383924,0.81571733,98225.0,98224.0,0.0081708]
[1736046384289,1.15282832,98225.0,98224.0,0.0081708]
[1736046385150,1.19792832,98225.0,98224.0,0.0081708]
[1736046387572,1.2083447,98225.0,98224.0,0.0081708]
[1736046393991,1.2083447,98225.0,98224.0,0.00796286]
[1736046395460,1.3083447,98225.0,98224.0,0.00796286]
[1736046400635,0.19185893,98210.0,98209.0,0.0001708]
[1736046401986,0.19185893,98210.0,98209.0,0.00066544]
[1736046403214,0.19585893,98210.0,98209.0,0.00066544]
[1736046406106,0.19696038,98210.0,98209.0,0.00066544]
[1736046406506,0.68922612,98210.0,98209.0,0.00066544]
[1736046406713,0.68812467,98210.0,98209.0,0.00066544]
[1736046409097,0.89176967,98210.0,98209.0,0.00066544]
[1736046409311,0.68812467,98210.0,98209.0,0.00066544]
[1736046415784,0.77954425,98210.0,98209.0,0.00066544]
[1736046416905,0.68812467,98210.0,98209.0,0.00066544]
[1736046417439,0.76572467,98210.0,98209.0,0.00066544]
[1736046418507,0.76572467,98210.0,98209.0,0.00366544]
[1736046419106,0.76172467,98210.0,98209.0,0.00366544]
[1736046419302,1.10041063,98210.0,98209.0,0.01066544]
[1736046419581,1.09941063,98210.0,98209.0,0.00366544]
[1736046420014,1.09941063,98210.0,98209.0,0.00866544]
[1736046420213,1.09941063,98210.0,98209.0,0.00566544]
[1736046420460,1.09941063,98210.0,98209.0,0.00766544]
[1736046450543,1.13121563,98210.0,98209.0,0.00766544]
[1736046450753,1.09941063,98210.0,98209.0,0.00766544]
[1736046451435,1.13121837,98210.0,98209.0,0.00766544]
[1736046451566,1.09941063,98210.0,98209.0,0.00766544]
[1736046452411,1.13122257,98210.0,98209.0,0.00766544]
[1736046453195,1.09941063,98210.0,98209.0,0.00766544]
[1736046453401,1.13122242,98210.0,98209.0,0.00766544]
[1736046454332,1.09941063,98210.0,98209.0,0.00766544]
[1736046455196,1.13122206,98210.0,98209.0,0.00766544]
[1736046455720,1.09941063,98210.0,98209.0,0.00766544]
[1736046455920,1.13122187,98210.0,98209.0,0.00766544]
[1736046456334,1.09941063,98210.0,98209.0,0.00766544]
[1736046457173,1.13122185,98210.0,98209.0,0.00766544]
[1736046458331,1.87911639,98210.0,98209.0,0.00766544]
[1736046460072,1.60448816,98210.0,98209.0,0.00766544]
[1736046460823,1.60448816,98210.0,98209.0,0.00266544]
[1736046461052,1.60448816,98210.0,98209.0,0.00666544]
[1736046461462,1.60448816,98210.0,98209.0,0.00466544]
[1736046461965,1.60448816,98210.0,98209.0,0.00666544]
[1736046469417,1.52688816,98210.0,98209.0,0.00666544]
[1736046480919,1.60568816,98210.0,98209.0,0.00666544]
[1736046488306,1.52688816,98210.0,98209.0,0.00666544]
[1736046494198,1.49507694,98210.0,98209.0,0.00666544]
[1736046494350,1.52688633,98210.0,98209.0,0.00666544]
[1736046527888,1.60898633,98210.0,98209.0,0.00666544]
[1736046551717,1.57717694,98210.0,98209.0,0.00666544]
[1736046552300,1.60897524,98210.0,98209.0,0.00666544]
[1736046552722,1.57717694,98210.0,98209.0,0.00666544]
[1736046553162,1.60897497,98210.0,98209.0,0.00666544]
[1736046558779,1.57717694,98210.0,98209.0,0.00666544]
[1736046564404,1.39507694,98210.0,98209.0,0.11065176]
[1736046564614,1.49507694,98210.0,98209.0,0.11065176]
[1736046566687,1.25070868,98210.0,98209.0,0.11065176]
[1736046567908,1.02181063,98210.0,98209.0,0.11065176]
[1736046570462,0.92181063,98210.0,98209.0,0.11065176]
[1736046571644,1.02181063,98210.0,98209.0,0.11065176]
[1736046571850,0.58412467,98210.0,98209.0,0.11065176]
[1736046572056,0.68412467,98210.0,98209.0,0.11065176]
[1736046573440,0.58412467,98210.0,98209.0,0.11065176]
[1736046574238,0.7213579,98210.0,98209.0,0.11065176]
[1736046575179,0.8213579,98210.0,98209.0,0.11065176]
[1736046575512,0.8877373,98210.0,98209.0,0.11065176]
[1736046576729,0.65050407,98210.0,98209.0,0.11065176]
[1736046577581,0.0663794,98210.0,98209.0,0.11065176]
[1736046577813,0.15823833,98210.0,98209.0,0.11065176]
[1736046578025,0.59589926,98210.0,98209.0,0.11065176]
[1736046578220,0.49589926,98210.0,98209.0,0.11065176]
[1736046578439,0.40404033,98210.0,98209.0,0.11065176]
[1736046579063,0.59589926,98210.0,98209.0,0.1251373]
[1736046579271,0.0663794,98210.0,98209.0,0.1541373]
[1736046579474,0.1663794,98210.0,98209.0,0.15515542]
[1736046580103,0.1663794,98210.0,98209.0,0.14715542]
[1736046580371,0.1663794,98210.0,98209.0,0.16017764]
[1736046580590,0.1673794,98210.0,98209.0,0.16017764]
[1736046580754,0.1663794,98210.0,98209.0,0.16017764]
[1736046580948,0.1663794,98210.0,98209.0,0.15817764]
[1736046581194,0.1683794,98210.0,98209.0,0.15817764]
[1736046582835,0.1683794,98210.0,98209.0,0.15717764]
[1736046583235,0.1693794,98210.0,98209.0,0.15717764]
[1736046584341,0.1693794,98210.0,98209.0,0.15615952]
[1736046588320,0.1693794,98210.0,98209.0,0.1461373]
[1736046589900,0.1693794,98210.0,98209.0,0.6461373]
[1736046591422,0.1683794,98210.0,98209.0,0.6461373]
[1736046591636,0.1663794,98210.0,98209.0,0.6461373]
[1736046591849,0.1673794,98210.0,98209.0,0.6461373]
[1736046591990,0.1693794,98210.0,98209.0,0.6461373]
[1736046595292,0.1673794,98210.0,98209.0,0.6461373]
[1736046595720,0.1693794,98210.0,98209.0,0.6461373]
[1736046596799,0.1683794,98210.0,98209.0,0.6461373]
[1736046597029,0.1693794,98210.0,98209.0,0.6461373]
[1736046597859,0.1683794,98210.0,98209.0,0.6461373]
[1736046598185,0.1693794,98210.0,98209.0,0.6471373]
[1736046598393,0.1673794,98210.0,98209.0,0.6471373]
[1736046598601,0.1693794,98210.0,98209.0,0.6471373]
[1736046605800,0.1693794,98210.0,98209.0,0.6461373]
[1736046606015,0.1663794,98210.0,98209.0,0.6461373]
[1736046606184,0.1693794,98210.0,98209.0,0.6461373]
[1736046608627,0.1693794,98210.0,98209.0,0.8497843]
[1736046621527,0.0693794,98210.0,98209.0,0.8497843]
[1736046621955,0.1693794,98210.0,98209.0,0.8497843]
[1736046631467,0.0693794,98210.0,98209.0,0.8497843]
[1736046631694,0.1693794,98210.0,98209.0,0.8497843]
[1736046643099,0.0693794,98210.0,98209.0,0.8497843]
[1736046643297,0.1693794,98210.0,98209.0,0.8497843]
[1736046668187,0.0693794,98210.0,98209.0,0.8497843]
[1736046668761,0.0673794,98210.0,98209.0,0.8497843]
[1736046668973,0.0663794,98210.0,98209.0,0.8497843]
[1736046669179,0.0683794,98210.0,98209.0,0.8497843]
[1736046669408,0.0693794,98210.0,98209.0,0.8497843]
[1736046669610,0.0673794,98210.0,98209.0,0.8497843]
[1736046670018,0.0703794,98210.0,98209.0,0.8497843]
[1736046672741,0.0683794,98210.0,98209.0,0.8497843]
[1736046672947,0.0663794,98210.0,98209.0,0.8497843]
[1736046673177,0.0693794,98210.0,98209.0,0.8497843]
[1736046673606,0.1693794,98210.0,98209.0,0.8497843]
[1736046676261,0.0693794,98210.0,98209.0,0.8497843]
[1736046676475,0.1693794,98210.0,98209.0,0.8497843]
[1736046676651,0.0693794,98210.0,98209.0,0.8497843]
[1736046678266,0.0673794,98210.0,98209.0,0.8497843]
[1736046678472,0.0663794,98210.0,98209.0,0.8497843]
[1736046678686,0.0693794,98210.0,98209.0,0.8497843]
[1736046681999,0.0663794,98210.0,98209.0,0.8497843]
[1736046682413,0.0693794,98210.0,98209.0,0.8497843]
[1736046683652,0.0673794,98210.0,98209.0,0.8497843]
[1736046683974,0.0693794,98210.0,98209.0,0.8497843]
[1736046684334,0.0673794,98210.0,98209.0,0.8497843]
[1736046684751,0.0693794,98210.0,98209.0,0.8497843]
[1736046690294,0.0673794,98210.0,98209.0,0.8497843]
[1736046690652,0.0683794,98210.0,98209.0,0.8497843]
[1736046690832,0.0693794,98210.0,98209.0,0.8497843]
[1736046691138,0.0673794,98210.0,98209.0,0.8497843]
[1736046691563,0.0683794,98210.0,98209.0,0.8497843]
[1736046691948,0.0693794,98210.0,98209.0,0.8497843]
[1736046693216,0.1693794,98210.0,98209.0,0.8497843]
[1736046693618,0.1693794,98210.0,98209.0,0.8565843]
[1736046696326,0.0693794,98210.0,98209.0,0.8565843]
[1736046697139,0.003,98210.0,98209.0,0.8565843]
[1736046697765,0.103,98210.0,98209.0,0.8565843]
[1736046699903,0.003,98210.0,98209.0,0.8565843]
[1736046700110,0.103,98210.0,98209.0,0.8565843]
[1736046700676,0.003,98210.0,98209.0,0.8565843]
[1736046702921,0.003,98210.0,98209.0,1.0065843]
[1736046703567,0.00275562,98210.0,98209.0,1.0065843]
[1736046703720,0.001,98210.0,98209.0,1.0065843]
[1736046704210,0.002,98210.0,98209.0,1.0065843]
[1736046704374,0.001,98210.0,98209.0,1.0065843]
[1736046704574,0.1,98216.0,98215.0,0.203634]
[1736046704785,0.1,98216.0,98215.0,0.33062032]
[1736046704980,0.1783,98217.0,98216.0,0.023]
[1736046705211,0.1783,98217.0,98216.0,0.12698632]
[1736046705355,0.0783,98217.0,98216.0,0.1461287]
[1736046705567,0.1783,98217.0,98216.0,0.1461287]
[1736046706173,0.1793,98217.0,98216.0,0.1461287]
[1736046707053,0.1813,98217.0,98216.0,0.1461287]
[1736046707521,0.0783,98217.0,98216.0,0.1461287]
[1736046707737,0.0803,98217.0,98216.0,0.1461287]
[1736046708077,0.0813,98217.0,98216.0,0.1461287]
[1736046708778,0.1813,98217.0,98216.0,0.1461287]
[1736046709540,0.0813,98217.0,98216.0,0.1461287]
[1736046709748,0.1813,98217.0,98216.0,0.16684378]
[1736046710157,0.1813,98217.0,98216.0,0.17694338]
[1736046710963,0.0813,98217.0,98216.0,0.17694338]
[1736046711117,0.1813,98217.0,98216.0,0.17694338]
[1736046712148,0.1813,98217.0,98216.0,0.67694338]
[1736046715094,0.18114598,98217.0,98216.0,0.67694338]
[1736046718937,0.08114598,98217.0,98216.0,0.67694338]
[1736046719139,0.18114598,98217.0,98216.0,0.67694338]
[1736046720652,0.08114598,98217.0,98216.0,0.67694338]
[1736046720863,0.18114598,98217.0,98216.0,0.67694338]
[1736046721662,0.08014598,98217.0,98216.0,0.67694338]
[1736046721824,0.07814598,98217.0,98216.0,0.67694338]
[1736046722040,0.18114598,98217.0,98216.0,0.67694338]
[1736046729836,0.18114598,98217.0,98216.0,0.68374338]
[1736046730822,0.18114598,98217.0,98216.0,0.68391418]
[1736046731054,0.18123138,98217.0,98216.0,0.68391418]
[1736046733827,0.08123138,98217.0,98216.0,0.68391418]
[1736046734020,0.18123138,98217.0,98216.0,0.68391418]
[1736046735976,0.08123138,98217.0,98216.0,0.68391418]
[1736046736128,0.18123138,98217.0,98216.0,0.68391418]
[1736046744566,0.08123138,98217.0,98216.0,0.68391418]
[1736046744802,0.18123138,98217.0,98216.0,0.68391418]
[1736046749909,0.18123138,98217.0,98216.0,0.66091418]
[1736046755885,0.08123138,98217.0,98216.0,0.66091418]
[1736046756088,0.18123138,98217.0,98216.0,0.66091418]
[1736046761534,0.08123138,98217.0,98216.0,0.66091418]
[1736046761690,0.18123138,98217.0,98216.0,0.66091418]
[1736046764156,0.08123138,98217.0,98216.0,0.66091418]
[1736046764361,0.18123138,98217.0,98216.0,0.66091418]
[1736046767780,0.08123138,98217.0,98216.0,0.66091418]
[1736046767991,0.18123138,98217.0,98216.0,0.66091418]
[1736046781433,0.08123138,98217.0,98216.0,0.66091418]
[1736046781622,0.18123138,98217.0,98216.0,0.66091418]
[1736046788360,0.18123138,98217.0,98216.0,0.65081458]
[1736046792065,0.08123138,98217.0,98216.0,0.65081458]
[1736046792267,0.18123138,98217.0,98216.0,0.65081458]
[1736046793892,0.27309031,98217.0,98216.0,0.6232995]
[1736046794095,0.31839031,98217.0,98216.0,0.6232995]
[1736046800987,0.40996957,98217.0,98216.0,0.6232995]
[1736046802324,0.31839031,98217.0,98216.0,0.6232995]
[1736046823631,0.31739031,98217.0,98216.0,0.6232995]
[1736046831272,0.40896957,98217.0,98216.0,0.6232995]
[1736046832493,0.31739031,98217.0,98216.0,0.6232995]
[1736046834127,0.40896957,98217.0,98216.0,0.6232995]
[1736046837583,0.31739031,98217.0,98216.0,0.6232995]
[1736046839823,0.40900439,98217.0,98216.0,0.6232995]
[1736046842115,0.31739031,98217.0,98216.0,0.6232995]
[1736046854107,0.40902446,98217.0,98216.0,0.6232995]
[1736046862144,0.31739031,98217.0,98216.0,0.6232995]
[1736046862697,0.80965605,98217.0,98216.0,0.51931318]
[1736046864654,1.37679405,98217.0,98216.0,0.51931318]
[1736046865481,1.38678797,98217.0,98216.0,0.51931318]
[1736046867321,1.15788992,98217.0,98216.0,0.51931318]
[1736046869693,1.38681189,98217.0,98216.0,0.51931318]